bitfinex-derivatives/quotes_ETHF0:USTF0_20241129
["timestamp","ask_amount","ask_price","bid_price","bid_amount"]
[1732915722076,0.2787,3584.7,3584.6,0.27869]
[1732915723588,2.64003648,3584.9,3584.4,1.02761992]
[1732915723789,0.27871,3584.5,3584.4,1.30632992]
[1732915727891,1.61241656,3584.9,3584.4,1.02761992]
[1732915728104,0.2787,3584.7,3584.6,0.27869]
[1732915729192,2.13790992,3585.0,3584.2,0.4402]
[1732915729395,2.13790992,3585.0,3584.3,0.27871]
[1732915729396,0.27872,3584.4,3584.3,0.27871]
[1732915729593,0.27872,3584.6,3584.5,0.2787]
[1732915729796,0.27872,3584.4,3584.3,0.27872]
[1732915734312,0.27872,3584.3,3584.2,0.71893]
[1732915734605,0.27873,3584.2,3584.1,3.2078]
[1732915734815,0.27874,3584.2,3584.1,0.27873]
[1732915735013,0.27874,3584.1,3584.0,0.72884]
[1732915735811,3.48652,3584.4,3584.3,0.27872]
[1732915736108,3.48652,3584.4,3584.0,1.14697]
[1732915736109,0.27874,3584.2,3584.1,1.17413]
[1732915738402,0.69678,3584.5,3584.1,0.8954]
[1732915738612,0.27873,3584.2,3584.1,1.17414]
[1732915740012,1.45381992,3584.6,3584.2,0.27872]
[1732915740013,0.27873,3584.3,3584.2,0.27872]
[1732915740703,0.27872,3584.5,3584.4,0.27871]
[1732915741702,3.2078,3584.8,3584.4,0.6968]
[1732915741908,3.2078,3584.8,3584.7,0.27869]
[1732915741909,3.48649,3584.8,3584.7,0.27869]
[1732915742310,3.48649,3584.8,3584.7,1.54889]
[1732915742507,3.48649,3584.8,3584.7,0.4118]
[1732915743912,0.27869,3584.8,3584.7,0.4118]
[1732915746913,0.27872,3584.4,3584.3,0.70542]
[1732915759721,0.27871,3584.7,3584.6,0.27869]
[1732915765925,0.4268,3584.9,3584.8,0.27869]
[1732915767729,0.27868,3584.9,3584.8,0.27869]
[1732915767924,0.27868,3584.9,3584.7,0.414]
[1732915768122,0.27869,3584.8,3584.7,0.69269]
[1732915770130,0.27868,3585.0,3584.9,0.27867]
[1732915771527,3.6252,3585.1,3584.7,0.414]
[1732915771727,3.6252,3585.1,3584.7,0.69269]
[1732915771728,0.27869,3584.8,3584.7,0.69269]
[1732915777332,0.27869,3584.9,3584.8,0.27867]
[1732915779635,0.27869,3584.8,3584.7,0.69269]
[1732915784844,3.6252,3585.1,3584.7,0.414]
[1732915785141,0.27869,3585.0,3584.9,0.27867]
[1732915787234,0.27869,3584.9,3584.8,0.27868]
[1732915789948,0.27869,3584.9,3584.8,0.72488]
[1732915796448,0.27869,3584.9,3584.5,3.2078]
[1732915796658,0.27869,3584.7,3584.6,1.06987144]
[1732915798449,0.27869,3584.7,3584.6,0.71129]
[1732915799353,0.27869,3584.7,3584.6,0.4326]
[1732915799947,0.27869,3584.7,3584.3,0.4093]
[1732915799948,0.27872,3584.4,3584.3,0.4093]
[1732915800141,1.02761992,3584.4,3584.2,0.4288]
[1732915800344,0.27872,3584.3,3584.2,0.4288]
[1732915801945,0.27873,3584.2,3584.1,0.4226]
[1732915802153,9.23541992,3584.4,3583.2,3.2078]
[1732915802349,0.27879,3583.4,3583.3,0.8562]
[1732915802546,3.2078,3583.8,3583.3,1.88381992]
[1732915802759,0.0194,3584.3,3584.1,0.27873]
[1732915802760,0.27874,3584.2,3584.1,0.27873]
[1732915802942,0.27874,3584.2,3583.6,1.02761992]
[1732915802943,4.23541992,3584.3,3583.8,0.8531]
[1732915803148,1.30636992,3584.0,3583.9,0.4167]
[1732915804149,0.69691,3583.9,3583.3,0.4116]
[1732915804458,0.27879,3583.5,3583.4,0.69549]
[1732915805851,0.27879,3583.5,3583.4,0.4167]
[1732915806262,0.27879,3583.5,3583.4,0.69549]
[1732915806447,0.27879,3583.5,3583.4,0.4167]
[1732915810960,0.2788,3583.3,3583.2,3.2078]
[1732915811360,0.2788,3583.3,3583.2,3.48661]
[1732915813358,0.2788,3583.3,3583.2,0.27881]
[1732915813862,0.27881,3583.2,3583.1,0.69091]
[1732915820965,0.27881,3583.2,3583.1,0.4121]
[1732915821163,0.27883,3582.9,3582.8,3.6247]
[1732915821361,0.27883,3582.9,3582.4,2.0177]
[1732915821362,1.02761992,3582.9,3582.4,2.0177]
[1732915821556,0.27886,3582.5,3582.4,2.29657]
[1732915821856,1.02761992,3582.9,3582.5,0.27885]
[1732915821857,0.27886,3582.6,3582.5,0.27885]
[1732915822059,0.27886,3582.7,3582.6,0.27885]
[1732915822966,0.27885,3582.9,3582.8,0.27883]
[1732915823860,0.27885,3582.8,3582.7,0.27884]
[1732915824464,0.27884,3582.9,3582.8,0.27883]
[1732915825066,4.23541992,3583.5,3582.7,1.02761992]
[1732915825258,0.27882,3583.2,3583.1,0.27881]
[1732915825571,4.23541992,3583.5,3582.7,1.02761992]
[1732915825769,0.27881,3583.4,3583.3,0.27879]
[1732915828171,0.2788,3583.4,3583.3,0.27879]
[1732915828366,3.2078,3583.9,3583.3,1.02761992]
[1732915828669,3.2078,3584.4,3583.8,3.2078]
[1732915828964,0.69677,3584.6,3584.2,0.27872]
[1732915828965,0.27873,3584.3,3584.2,0.27872]
[1732915829572,0.27874,3584.2,3584.1,0.27873]
[1732915829962,0.4499,3584.5,3584.2,0.27872]
[1732915829963,0.27873,3584.3,3584.2,0.27872]
[1732915830165,0.27872,3584.5,3584.4,0.27872]
[1732915830966,1.30632992,3584.6,3584.5,0.27871]
[1732915831169,0.27872,3584.5,3584.4,0.27871]
[1732915832071,1.30632992,3584.6,3584.5,0.27871]
[1732915832868,4.0574,3584.8,3584.5,0.27871]
[1732915833074,4.0574,3584.8,3584.2,1.02761992]
[1732915833075,0.2787,3584.7,3584.6,0.71369]
[1732915834172,3.6459,3585.2,3584.6,0.435]
[1732915834365,3.2078,3585.6,3585.1,4.23541992]
[1732915834575,1.72414992,3585.8,3585.2,0.71365]
[1732915834576,0.27865,3585.3,3585.2,0.71365]
[1732915835368,0.27864,3585.4,3585.3,0.27864]
[1732915836374,0.4514,3585.5,3585.4,0.27864]
[1732915836973,0.27862,3585.6,3585.3,0.41]
[1732915837173,0.27862,3585.6,3585.5,0.27863]
[1732915838368,1.89211992,3585.9,3585.4,0.4292]
[1732915838674,0.27863,3585.5,3585.4,0.70784]
[1732915838978,0.27858,3586.2,3586.0,0.27859]
[1732915839376,0.4414,3586.3,3586.0,0.27859]
[1732915839573,0.27858,3586.1,3586.0,0.27859]
[1732915840074,1.45941992,3586.2,3586.1,0.27858]
[1732915840481,0.4318,3586.2,3586.1,0.27858]
[1732915842676,0.4318,3586.2,3585.9,0.4277]
[1732915842876,0.71038,3586.2,3586.1,0.27858]
[1732915843274,0.4318,3586.2,3585.8,0.4145]
[1732915843480,1.02761992,3586.0,3585.8,0.4145]
[1732915843978,1.30621992,3586.0,3585.9,0.2786]
[1732915844675,0.2786,3586.0,3585.9,0.2786]
[1732915845976,0.27859,3586.1,3586.0,0.27859]
[1732915846781,0.2786,3586.0,3585.9,0.2786]
[1732915846983,0.2786,3585.9,3585.8,0.6931]
[1732915847179,0.2786,3586.0,3585.9,0.27859]
[1732915847779,0.4318,3586.2,3585.8,0.4145]
[1732915847987,0.27859,3586.1,3586.0,0.27858]
[1732915848676,0.4318,3586.2,3585.8,0.4145]
[1732915848981,0.71038,3586.2,3586.1,0.27858]
[1732915849680,0.27859,3586.1,3586.0,0.27859]
[1732915852286,0.71038,3586.2,3586.1,0.27858]
[1732915854883,0.27859,3586.1,3586.0,0.27859]
[1732915855080,0.2786,3586.0,3585.9,0.2786]
[1732915855882,0.2786,3586.0,3585.5,3.6286]
[1732915855883,0.27862,3585.6,3585.5,3.48643]
[1732915856083,0.27862,3585.6,3585.5,3.89743]
[1732915856384,1.02761992,3585.6,3584.9,0.735]
[1732915856579,0.8565,3585.5,3585.0,0.411]
[1732915856777,0.27865,3585.3,3585.2,0.27864]
[1732915857083,3.2078,3585.3,3584.7,4.0745]
[1732915857383,3.2078,3585.3,3584.7,4.23541992]
[1732915857583,0.27867,3585.1,3585.0,0.27866]
[1732915858684,0.27868,3585.0,3584.9,0.27867]
[1732915861787,3.2078,3585.3,3584.8,0.8667]
[1732915861994,0.27868,3584.9,3584.8,1.14538]
[1732915862291,3.2078,3584.9,3584.5,0.4108]
[1732915862583,3.2078,3584.9,3584.2,0.8646]
[1732915862584,1.89741992,3584.8,3584.2,0.8646]
[1732915862786,0.27872,3584.3,3584.2,0.8646]
[1732915862985,0.27872,3584.3,3584.2,1.14333]
[1732915863187,0.27872,3584.3,3584.2,0.8646]
[1732915863384,0.27874,3584.1,3584.0,0.71844]
[1732915864200,3.2078,3584.5,3584.0,0.4397]
[1732915864882,0.27872,3584.4,3584.2,0.27873]
[1732915865082,0.27873,3584.3,3584.2,0.27873]
[1732915865984,3.2078,3584.5,3584.0,0.4397]
[1732915866196,0.27874,3584.2,3584.1,0.27873]
[1732915866395,0.27873,3584.3,3584.2,0.27873]
[1732915866995,3.2078,3584.5,3584.1,0.417]
[1732915867198,0.27872,3584.4,3584.3,0.27872]
[1732915867384,0.27873,3584.3,3584.2,0.27873]
[1732915869086,3.48651,3584.5,3584.4,0.27872]
[1732915869890,0.27872,3584.4,3584.3,0.27872]
[1732915872394,3.2078,3584.5,3584.2,0.4317]
[1732915872596,3.2078,3584.5,3584.4,0.27872]
[1732915872597,0.27871,3584.5,3584.4,0.27872]
[1732915874795,0.27871,3584.5,3584.3,3.2078]
[1732915874796,0.27871,3584.6,3584.5,0.2787]
[1732915875101,0.00697408,3584.7,3584.3,3.2078]
[1732915875398,0.00697408,3584.7,3584.6,0.2787]
[1732915876099,0.00697408,3584.7,3584.6,0.7163]
[1732915877796,0.00697408,3584.7,3584.6,1.17196081]
[1732915878101,0.00697408,3584.7,3584.6,0.7163]
[1732915878295,0.28566408,3584.7,3584.6,0.7163]
[1732915878490,0.00697408,3584.7,3584.6,0.7163]
[1732915881996,0.28566408,3584.7,3584.6,0.4376]
[1732915882202,0.27875,3584.0,3583.9,3.2078]
[1732915884589,3.2078,3584.0,3583.5,0.27878]
[1732915884795,0.8743,3583.9,3583.3,0.425]
[1732915884997,0.27879,3583.5,3583.4,0.27879]
[1732915885901,0.27879,3583.4,3583.3,0.7038]
[1732915887412,0.8743,3583.9,3583.3,0.7038]
[1732915887594,0.27879,3583.5,3583.4,0.27878]
[1732915888698,0.27878,3583.7,3583.6,0.27878]
[1732915889008,0.27878,3583.7,3583.3,0.425]
[1732915889009,0.8743,3583.9,3583.3,0.425]
[1732915889196,0.27879,3583.5,3583.4,0.27879]
[1732915890209,0.8743,3583.9,3583.3,0.425]
[1732915890399,0.27879,3583.6,3583.5,0.27878]
[1732915890703,0.8743,3583.9,3583.3,0.425]
[1732915890905,0.27878,3583.6,3583.5,0.27878]
[1732915891903,0.8743,3583.9,3583.3,0.425]
[1732915892097,3.2078,3584.0,3583.5,3.2078]
[1732915892301,3.2078,3584.0,3583.9,0.27876]
[1732915892807,0.4466,3584.4,3583.7,0.4133]
[1732915893003,0.27872,3584.4,3584.3,0.27872]
[1732915893203,0.27874,3584.2,3584.0,0.27875]
[1732915893395,3.2078,3584.5,3584.3,0.27872]
[1732915893396,0.27872,3584.4,3584.3,0.27872]
[1732915893706,3.48651,3584.5,3584.4,0.27872]
[1732915894306,3.2078,3584.5,3584.4,0.27872]
[1732915894504,0.00697408,3584.7,3584.6,0.2787]
[1732915896101,0.28566408,3584.7,3584.6,0.2787]
[1732915896705,0.00697408,3584.7,3584.6,0.2787]
[1732915902905,0.28569408,3584.7,3584.6,0.2787]
[1732915903103,0.00697408,3584.7,3584.1,0.4215]
[1732915903405,0.00697408,3584.7,3583.7,2.12453474]
[1732915903406,3.2078,3584.4,3583.8,0.735]
[1732915903818,0.27876,3584.3,3584.2,0.27876]
[1732915906814,0.27877,3584.2,3584.1,0.27876]
[1732915907704,3.2078,3584.4,3583.7,1.6108]
[1732915907908,3.2078,3584.0,3583.1,3.9428]
[1732915908104,0.27882,3583.5,3583.4,0.27881]
[1732915908309,0.8446,3583.9,3583.1,0.735]
[1732915908310,3.2078,3583.6,3583.1,0.735]
[1732915908504,3.48661,3583.6,3583.5,0.27881]
[1732915909228,3.2078,3583.6,3583.5,0.27881]
[1732915909411,3.48661,3583.6,3583.5,0.27881]
[1732915909813,3.2078,3583.6,3583.5,0.27881]
[1732915910015,3.48661,3583.6,3583.5,0.27881]
[1732915910916,0.27883,3583.3,3583.2,0.27883]
[1732915911113,3.2078,3583.6,3582.8,0.27886]
[1732915911114,0.27887,3582.9,3582.8,0.27886]
[1732915912012,3.2078,3583.1,3582.5,0.9015]
[1732915912515,0.27887,3582.9,3582.8,0.27887]
[1732915912909,0.27888,3582.8,3582.7,0.27887]
[1732915913219,0.27887,3582.9,3582.8,0.27886]
[1732915913413,0.71256,3583.0,3582.9,0.27886]
[1732915914420,0.4337,3583.0,3582.9,0.27886]
[1732915914721,0.27887,3582.9,3582.8,0.27886]
[1732915915917,0.71256,3583.0,3582.9,0.27886]
[1732915916726,0.27887,3582.9,3582.8,0.27886]
[1732915917423,0.4337,3583.0,3582.5,3.2078]
[1732915917617,0.71256,3583.0,3582.9,0.27886]
[1732915921021,0.27887,3582.9,3582.8,0.27887]
[1732915921218,0.4337,3583.0,3582.7,0.845]
[1732915921620,0.4337,3583.0,3582.1,3.2078]
[1732915921621,2.12453474,3582.9,3582.1,3.2078]
[1732915921827,0.27891,3582.4,3582.3,0.2789]
[1732915922923,0.69718,3582.8,3582.3,0.2789]
[1732915923130,0.2789,3582.4,3582.3,0.2789]
[1732915923432,0.69718,3582.8,3582.1,3.6473]
[1732915923630,0.27891,3582.3,3582.2,0.27891]
[1732915924128,0.27891,3582.4,3582.3,0.2789]
[1732915924718,0.4391,3582.6,3582.1,3.6473]
[1732915924922,0.2789,3582.5,3582.4,0.27889]
[1732915925427,0.71799,3582.6,3582.5,0.27889]
[1732915926331,0.4391,3582.6,3582.1,3.6473]
[1732915926528,0.2789,3582.5,3582.4,0.2789]
[1732915927624,0.27891,3582.4,3582.3,0.2789]
[1732915928225,0.27891,3582.3,3582.2,0.27891]
[1732915928426,0.27891,3582.4,3582.3,0.2789]
[1732915929530,0.4337,3583.0,3582.2,40.8]
[1732915929829,0.27888,3582.8,3582.7,0.27887]
[1732915930027,0.8425,3583.0,3582.2,40.8]
[1732915930334,0.27887,3582.9,3582.8,0.27886]
[1732915930628,1.12136,3583.0,3582.9,0.27886]
[1732915930827,3.2078,3583.1,3583.0,0.27885]
[1732915931130,3.93322,3583.5,3583.4,0.27882]
[1732915931332,3.2078,3583.5,3583.4,0.27882]
[1732915931535,3.48661,3583.5,3583.4,0.27882]
[1732915931831,3.2078,3583.5,3583.4,0.27882]
[1732915932024,3.48661,3583.5,3583.4,0.27882]
[1732915932223,3.48661,3583.5,3583.1,0.69711]
[1732915932224,0.27883,3583.4,3583.3,0.27882]
[1732915939630,0.27883,3583.4,3583.3,0.71822]
[1732915941329,3.2078,3583.5,3583.3,0.71822]
[1732915941533,3.2078,3583.5,3583.4,0.27882]
[1732915941735,3.48661,3583.5,3583.4,0.68832]
[1732915942135,3.2078,3583.5,3583.4,0.68832]
[1732915942638,3.48661,3583.5,3583.4,0.68832]
[1732915944131,3.2078,3583.5,3583.4,0.68832]
[1732915944543,3.48661,3583.5,3583.4,0.4095]
[1732915944736,0.27882,3583.4,3583.3,0.4394]
[1732915945039,0.27882,3583.4,3583.3,0.71823]
[1732915946941,3.48662,3583.4,3583.3,0.71823]
[1732915950139,4.51460756,3583.4,3583.3,0.71823]
[1732915950636,0.6971,3583.3,3582.0,3.2078]
[1732915950837,4.51464756,3582.9,3582.8,0.69866]
[1732915951043,4.23578756,3582.9,3582.8,0.69866]
[1732915951240,4.51464756,3582.9,3582.8,0.69866]
[1732915951441,0.27885,3583.1,3582.8,0.4198]
[1732915951741,0.27885,3583.1,3583.0,0.27885]
[1732915951936,1.02798756,3583.2,3582.8,0.4198]
[1732915952130,3.6548,3583.3,3582.9,0.27885]
[1732915952131,0.27886,3583.0,3582.9,0.27885]
[1732915953335,0.27885,3583.2,3583.1,0.27884]
[1732915953539,0.27886,3583.1,3583.0,0.27885]
[1732915955539,3.2078,3583.3,3583.2,0.27884]
[1732915955738,0.27881,3583.7,3583.6,0.2788]
[1732915955940,3.2078,3583.9,3583.3,0.413]
[1732915956135,0.27881,3583.5,3583.4,0.4299]
[1732915956639,3.48661,3583.5,3583.4,0.4299]
[1732915960445,3.48661,3583.5,3583.4,0.70872]
[1732915960645,3.2078,3583.5,3583.4,0.70872]
[1732915961244,3.48661,3583.5,3583.4,0.70872]
[1732915962549,3.2078,3583.5,3583.4,0.70872]
[1732915963040,3.48661,3583.5,3583.4,0.70872]
[1732915963747,3.2078,3583.5,3583.4,0.70872]
[1732915964149,3.48661,3583.5,3583.4,0.70872]
[1732915965453,3.48661,3583.5,3583.4,0.4299]
[1732915967155,3.48661,3583.5,3583.4,0.70872]
[1732915967453,3.48661,3583.5,3583.4,0.4299]
[1732915969653,0.27881,3583.5,3583.4,0.4299]
[1732915969854,3.48661,3583.5,3583.4,0.4299]
[1732915971967,0.69707,3583.4,3582.9,0.69276]
[1732915972159,3.48665,3583.0,3582.9,0.69276]
[1732915972665,3.48665,3583.0,3582.9,0.4139]
[1732915972863,3.2078,3583.0,3582.7,0.4131]
[1732915973065,0.27887,3582.8,3582.7,0.69197]
[1732915973462,0.4474,3582.9,3582.7,0.4131]
[1732915973658,0.72627,3582.9,3582.8,0.27887]
[1732915974169,0.72627,3582.9,3582.8,0.69917]
[1732915975062,0.27887,3582.9,3582.8,0.69917]
[1732915975270,0.27887,3582.9,3582.8,0.4203]
[1732915977473,0.27892,3582.3,3582.2,0.27891]
[1732915980884,0.27892,3582.2,3582.1,1.58442]
[1732915981569,1.02823709,3582.4,3582.1,1.3055]
[1732915981975,0.27891,3582.3,3582.2,0.27891]
[1732915982271,3.2078,3582.6,3582.5,0.27889]
[1732915982473,3.2078,3583.0,3582.9,0.27886]
[1732915982673,0.69706,3583.5,3582.8,1.72541709]
[1732915982674,3.2078,3583.4,3582.8,1.72541709]
[1732915982876,0.27884,3583.3,3583.2,0.27883]
[1732915983590,4.23603709,3583.4,3582.9,1.10526]
[1732915983777,3.2078,3583.4,3583.3,0.27883]
[1732915984082,3.48662,3583.4,3583.3,0.27883]
[1732915985283,0.27885,3583.1,3583.0,0.27884]
[1732915985470,0.27884,3583.2,3583.1,0.27884]
[1732915986070,0.27883,3583.3,3583.2,0.27883]
[1732915986481,4.23603709,3583.4,3583.3,0.27883]
[1732915986482,3.48663,3583.4,3583.3,0.27883]
[1732915988077,3.2078,3583.4,3583.3,0.27883]
[1732915988276,0.2788,3583.7,3583.3,0.27883]
[1732915988479,0.2788,3583.7,3583.6,0.27881]
[1732915988677,0.27881,3583.6,3583.5,0.27881]
[1732915989786,1.02823709,3583.7,3583.4,0.4489]
[1732915989978,0.27881,3583.5,3583.4,0.72772]
[1732915990379,0.27885,3583.2,3583.1,0.27884]
[1732915992082,1.02823709,3583.4,3583.0,3.6588]
[1732915992386,0.27884,3583.2,3583.1,0.27884]
[1732915992980,1.02823709,3583.4,3583.0,3.6588]
[1732915993184,1.02823709,3583.1,3582.9,0.4081]
[1732915993389,0.27888,3582.7,3582.6,0.27888]
[1732915993888,3.6178,3583.0,3582.5,0.425]
[1732915994180,3.6178,3583.0,3582.8,0.27886]
[1732915994181,0.27887,3582.9,3582.8,0.27886]
[1732915994585,3.89666,3583.0,3582.9,0.27886]
[1732915994788,3.48666,3583.0,3582.9,0.27886]
[1732915994986,3.48665,3583.0,3582.9,0.27886]
[1732915995487,3.2078,3583.0,3582.5,0.425]
[1732915995680,0.27888,3582.6,3582.5,0.70389]
[1732915995982,0.27888,3582.6,3582.5,0.425]
[1732915997680,0.27888,3582.6,3582.5,0.70389]
[1732915997884,0.27888,3582.6,3582.5,0.425]
[1732915999585,3.2078,3582.6,3582.0,0.4416]
[1732915999883,0.27894,3581.9,3581.3,1.43247]
[1732916000081,0.27894,3581.9,3581.8,0.29246]
[1732916000480,0.27894,3581.9,3581.8,0.01351]
[1732916000892,0.27894,3581.9,3581.8,0.29246]
[1732916002185,0.4298,3582.0,3581.8,0.01351]
[1732916002486,0.27894,3581.9,3581.8,0.29245]
[1732916002683,0.27894,3581.9,3581.8,0.01351]
[1732916003586,0.27894,3581.9,3581.8,0.29246]
[1732916004385,0.27894,3581.9,3581.8,0.01351]
[1732916006685,3.48674,3581.9,3581.8,0.01351]
[1732916007393,3.2078,3581.9,3581.8,0.29246]
[1732916007590,3.48674,3581.9,3581.8,0.29246]
[1732916008482,3.2078,3581.9,3581.8,0.29246]
[1732916008692,0.69719,3582.8,3581.8,0.29246]
[1732916008693,0.27892,3582.2,3581.9,0.27894]
[1732916008996,0.27893,3582.1,3582.0,0.69212]
[1732916009292,0.27892,3582.2,3582.1,0.27892]
[1732916009597,0.27892,3582.2,3582.1,0.72892]
[1732916010291,3.2078,3582.4,3582.1,0.45]
[1732916010490,3.2078,3582.4,3582.3,0.27891]
[1732916010699,0.69708,3583.3,3582.2,0.4228]
[1732916010700,0.27886,3582.9,3582.2,0.4228]
[1732916010896,0.27886,3582.9,3582.8,0.27887]
[1732916011087,3.2078,3583.0,3582.9,0.27886]
[1732916011788,3.48665,3583.0,3582.9,0.27886]
[1732916012896,3.2078,3583.0,3582.9,0.27886]
[1732916013801,3.48663,3583.4,3582.7,0.8622]
[1732916013993,3.48663,3583.4,3583.3,0.27883]
[1732916015199,3.2078,3583.4,3583.3,0.27883]
[1732916015701,3.48662,3583.4,3583.3,0.27883]
[1732916017794,3.2078,3583.4,3583.3,0.27883]
[1732916018297,3.48662,3583.4,3583.3,0.27883]
[1732916018797,3.2078,3583.4,3583.3,0.27883]
[1732916019705,3.48662,3583.4,3583.3,0.27883]
[1732916020802,3.2078,3583.4,3583.3,0.27883]
[1732916024208,3.48662,3583.4,3583.3,0.27883]
[1732916025807,3.2078,3583.4,3583.3,0.27883]
[1732916027803,3.2078,3583.4,3583.3,0.71603]
[1732916028807,3.2078,3583.8,3583.7,0.2788]
[1732916029309,3.48659,3583.8,3583.7,0.2788]
[1732916034117,3.2078,3583.8,3583.7,0.2788]
[1732916035911,3.2078,3583.8,3583.7,1.30668444]
[1732916036107,3.2078,3584.2,3583.8,0.69698]
[1732916036309,3.48656,3584.2,3584.1,0.27877]
[1732916037611,3.2078,3584.2,3583.9,0.4128]
[1732916037809,1.02788444,3584.0,3582.9,4.0541]
[1732916038018,3.2078,3583.1,3582.9,0.4222]
[1732916038309,0.27888,3582.7,3582.6,0.27888]
[1732916038709,0.8575,3583.0,3582.4,1.284]
[1732916038710,1.02788444,3582.9,3582.4,0.8707]
[1732916038908,0.27887,3582.8,3582.7,0.27887]
[1732916039310,0.27887,3582.9,3582.8,0.27886]
[1732916040215,0.27886,3582.9,3582.8,0.27886]
[1732916041211,0.8575,3583.0,3582.5,0.69724]
[1732916041407,1.13636,3583.0,3582.9,0.27886]
[1732916043315,0.4079,3583.0,3582.9,0.27886]
[1732916044215,0.68675,3583.0,3582.9,0.27886]
[1732916044417,3.2078,3583.1,3583.0,0.27885]
[1732916044715,3.48665,3583.1,3583.0,0.70905]
[1732916046615,0.27887,3582.9,3582.8,0.27886]
[1732916047116,1.13536,3583.0,3582.9,0.27886]
[1732916051215,0.27887,3582.9,3582.8,0.27887]
[1732916051416,0.8565,3583.0,3582.7,0.4148]
[1732916051417,1.13536,3583.0,3582.9,0.27886]
[1732916052526,1.13536,3583.0,3582.7,0.69367]
[1732916052527,0.27887,3582.8,3582.7,0.69367]
[1732916052717,0.27886,3582.9,3582.7,0.27887]
[1732916052917,0.27887,3582.8,3582.7,0.27887]
[1732916054122,0.8565,3583.0,3582.3,1.10796]
[1732916054320,0.27888,3582.7,3582.6,0.27887]
[1732916055021,0.27887,3582.9,3582.8,0.27886]
[1732916055524,0.27887,3582.9,3582.4,0.69726]
[1732916055525,0.27888,3582.8,3582.7,0.27887]
[1732916055917,0.8565,3583.0,3582.8,0.27886]
[1732916056126,0.27886,3582.9,3582.8,0.27886]
[1732916057423,1.13536,3583.0,3582.9,0.27886]
[1732916057620,0.72606,3583.0,3582.9,0.27886]
[1732916060229,3.2078,3583.1,3583.0,0.27885]
[1732916060230,3.48665,3583.1,3583.0,0.27885]
[1732916060827,0.27887,3582.9,3582.8,0.27886]
[1732916061519,3.6329,3583.0,3582.8,0.27886]
[1732916061725,3.91176,3583.0,3582.9,0.27886]
[1732916061920,3.91176,3583.0,3582.7,0.8701]
[1732916062128,3.6329,3583.0,3582.7,0.8701]
[1732916062328,3.6329,3583.0,3582.4,0.735]
[1732916062531,0.27889,3582.6,3582.5,0.27888]
[1732916064326,0.27889,3582.6,3582.4,1.6169]
[1732916064327,0.27888,3582.7,3582.6,0.27887]
[1732916073828,3.48668,3582.8,3582.7,0.27888]
[1732916074529,3.2078,3582.8,3582.7,0.27888]
[1732916074923,3.2078,3582.8,3582.7,1.30712616]
[1732916075128,0.4192,3583.4,3582.7,1.30712616]
[1732916075129,0.27883,3583.5,3583.4,0.27881]
[1732916075325,0.27883,3583.5,3583.4,1.30705616]
[1732916076236,0.27883,3583.5,3583.4,0.27881]
[1732916077836,3.2078,3583.6,3583.2,1.2714]
[1732916078032,0.27883,3583.3,3583.2,1.2714]
[1732916078233,0.27883,3583.3,3583.2,1.55024]
[1732916079937,3.2078,3583.6,3583.2,1.2714]
[1732916080139,3.48661,3583.6,3583.5,0.27881]
[1732916080338,0.27882,3583.5,3583.4,0.27881]
[1732916081327,0.27883,3583.4,3583.3,0.27882]
[1732916083033,0.27883,3583.4,3583.2,0.8374]
[1732916083034,3.2078,3583.6,3583.2,0.8374]
[1732916083229,3.2078,3583.6,3583.2,1.11623]
[1732916083230,0.27883,3583.3,3583.2,1.11623]
[1732916083842,0.27883,3583.3,3583.2,0.27883]
[1732916084137,3.2078,3583.6,3583.0,2.86059625]
[1732916084333,0.27882,3583.5,3583.4,0.27882]
[1732916084643,0.27884,3583.3,3583.2,0.27883]
[1732916085342,0.27882,3583.5,3583.4,0.27882]
[1732916089643,0.27885,3583.2,3583.1,0.27884]
[1732916089844,0.27885,3583.1,3583.0,0.27885]
[1732916090141,0.27887,3582.8,3582.7,0.27887]
[1732916090532,3.2078,3583.1,3582.3,0.734]
[1732916090736,0.27889,3582.7,3582.6,0.27888]
[1732916090939,0.69714,3583.0,3582.3,0.734]
[1732916090940,0.27889,3582.6,3582.5,0.27889]
[1732916091541,0.69714,3583.0,3582.3,0.734]
[1732916091738,0.27888,3582.7,3582.6,0.27888]
[1732916092143,0.27889,3582.6,3582.5,0.27889]
[1732916098344,0.27889,3582.6,3582.5,1.30711658]
[1732916102150,0.27892,3582.3,3582.0,3.2078]
[1732916102357,3.2078,3582.3,3581.6,0.69741]
[1732916102552,3.48671,3582.3,3582.2,1.02822658]
[1732916102855,3.48671,3582.3,3582.2,1.30714658]
[1732916103353,3.2078,3582.3,3582.2,1.30714658]
[1732916104256,3.48671,3582.3,3582.2,1.30714658]
[1732916104955,0.27892,3582.2,3582.1,0.27892]
[1732916105154,0.27892,3582.2,3582.1,1.02822658]
[1732916105449,0.27893,3582.0,3581.9,0.01347]
[1732916108059,1.02822658,3582.1,3580.8,0.734]
[1732916108254,0.27901,3581.1,3581.0,0.27901]
[1732916108758,0.27901,3581.0,3580.9,1.02822658]
[1732916108958,0.27901,3581.0,3580.9,1.30724658]
[1732916109146,0.27901,3581.0,3580.9,1.02822658]
[1732916109349,0.27901,3581.0,3580.9,1.30724658]
[1732916109856,0.27902,3580.9,3580.8,0.27902]
[1732916110056,0.27902,3580.9,3580.8,1.30724658]
[1732916110354,0.27902,3580.8,3580.7,0.734]
[1732916110559,0.27904,3580.7,3580.5,2.40765794]
[1732916110754,3.2078,3581.0,3580.5,2.12861794]
[1732916110955,0.27903,3580.8,3580.7,0.27903]
[1732916111146,0.27903,3580.7,3580.6,0.27904]